fUST/lending_fUST_20250307
["ID","MTS","AMOUNT","RATE_DAILY","PERIOD"]
[355605127,1741362639335,-853.07981807,0.00033979,2]
[355605128,1741362639345,-853.07981807,0.00033979,2]
[355605129,1741362639356,-853.07981807,0.00033979,2]
[355605130,1741362639367,-853.07981807,0.00033979,2]
[355605131,1741362639377,-853.07981807,0.00033979,2]
[355605132,1741362639387,-853.07981807,0.00033979,2]
[355605133,1741362639398,-853.07981807,0.00033979,2]
[355605134,1741362639408,-853.07981807,0.00033979,2]
[355605135,1741362639418,-30613.39500781,0.0003399,2]
[355605136,1741362639428,-66749.474855,0.0003399,2]
[355605137,1741362639438,-64646.4,0.00034,2]
[355605138,1741362639448,-64646.4,0.00034,2]
[355605139,1741362639463,-64646.4,0.00034,2]
[355605140,1741362639474,-64646.4,0.00034,2]
[355605141,1741362639484,-5612.942399,0.00034,2]
[355605142,1741362639494,-500.0,0.00034079,6]
[355605143,1741362639503,-500.0,0.00034216,6]
[355605144,1741362639514,-500.0,0.00034353,6]
[355605145,1741362639524,-500.0,0.0003449,6]
[355605146,1741362639534,-421.11,0.000345,12]
[355605147,1741362639545,-232.63,0.000345,2]
[355605148,1741362639555,-500.0,0.00034627,6]
[355605149,1741362639565,-2666.75886771,0.00034645,2]
[355605150,1741362639574,-500.0,0.00034764,6]
[355605151,1741362639584,-13349.894971,0.0003497,2]
[355605152,1741362639594,-500.0,0.00034973,5]
[355605153,1741362639604,-500.0,0.00034973,5]
[355605154,1741362639614,-500.0,0.00034973,5]
[355605155,1741362639624,-500.0,0.00034973,5]
[355605156,1741362639637,-500.0,0.00034973,5]
[355605157,1741362639648,-500.0,0.00034973,5]
[355605158,1741362639659,-500.0,0.00034973,5]
[355605159,1741362639669,-500.0,0.00034973,5]
[355605160,1741362639682,-16910.597006,0.0003498,2]
[355605161,1741362639692,-13349.894971,0.0003498,2]
[355605162,1741362639706,-151.0,0.00034988,14]
[355605163,1741362639716,-16910.597006,0.00034988,2]
[355605164,1741362639727,-26699.789942,0.00034988,2]
[355605165,1741362639737,-33821.194012,0.0003499,2]
[355605166,1741362639747,-13349.894971,0.0003499,2]
[355605167,1741362639759,-1321.1028273,0.00035,2]
[355605168,1741362639769,-863.93710099,0.00035,2]
[355605169,1741362639779,-50096.23409932,0.00035,2]
[355605170,1741362639788,-321.97,0.00035,14]
[355605171,1741362639799,-500.0,0.00035,15]
[355605172,1741362639810,-500.0,0.00035,11]
[355605173,1741362639819,-500.0,0.00035,11]
[355605174,1741362639829,-27703.26976686,0.00035,120]
[355605175,1741362639840,-430.98,0.0003536,3]
[355605176,1741362639850,-1000.0,0.00035616,2]
[355605177,1741362639860,-13349.894971,0.00035646,3]
[355605178,1741362639870,-160.0,0.00035646,3]
[355605179,1741362639880,-16910.597006,0.00035657,3]
[355605180,1741362639891,-416.66666667,0.00035667,3]
[355605181,1741362639900,-1000.0,0.00035687,120]
[355605182,1741362639910,-150.0,0.00035688,2]
[355605183,1741362639920,-540.0,0.00035688,2]
[355605184,1741362639930,-1953.0,0.00035688,2]
[355605185,1741362639939,-2275.0,0.00035688,2]
[355605186,1741362639953,-150.0,0.00035688,2]
[355605187,1741362639965,-643.26,0.000357,30]
[355605188,1741362639975,-357.89,0.000357,30]
[355605189,1741362639985,-502.82112684,0.00035714,120]
[355605190,1741362639996,-500.0,0.0003589,2]
[355605191,1741362640005,-2960.0,0.0003596,2]
[355605192,1741362640015,-686.71033131,0.00036,2]
[355605193,1741362640025,-500.0,0.00036572,7]
[355605194,1741362640035,-487.23682314,0.00036843,7]
[355605195,1741362640045,-154.0,0.00037,14]
[355605196,1741362640055,-154.0,0.00037,14]
[355605197,1741362640066,-154.0,0.00037,14]
[355605198,1741362640076,-154.0,0.00037,14]
[355605199,1741362640087,-154.0,0.00037,14]
[355605200,1741362640104,-154.0,0.00037,14]
[355605202,1741362640117,-154.0,0.00037,14]
[355605203,1741362640130,-154.0,0.00037,14]
[355605204,1741362640143,-154.0,0.00037,14]
[355605205,1741362640156,-159.94202628,0.00037,14]
[355605206,1741362640168,-316.0,0.00037,14]
[355605207,1741362640181,-316.0,0.00037,14]
[355605208,1741362640194,-316.0,0.00037,14]
[355605209,1741362640209,-316.0,0.00037,14]
[355605210,1741362640220,-316.0,0.00037,14]
[355605211,1741362640231,-316.0,0.00037,14]
[355605212,1741362640242,-316.0,0.00037,14]
[355605213,1741362640255,-316.0,0.00037,14]
[355605214,1741362640267,-316.0,0.00037,14]
[355605215,1741362640280,-316.0,0.00037,14]
[355605216,1741362640291,-316.0,0.00037,14]
[355605217,1741362640303,-316.0,0.00037,14]
[355605218,1741362640314,-316.0,0.00037,14]
[355605219,1741362640327,-316.0,0.00037,14]
[355605220,1741362640339,-316.0,0.00037,14]
[355605222,1741362640351,-316.0,0.00037,14]
[355605223,1741362640363,-316.0,0.00037,14]
[355605224,1741362640374,-316.0,0.00037,14]
[355605225,1741362640386,-316.0,0.00037,14]
[355605226,1741362640399,-316.0,0.00037,14]
[355605227,1741362640412,-316.0,0.00037,14]
[355605228,1741362640424,-324.2874915,0.00037,14]
[355605229,1741362640436,-416.66666667,0.00037327,2]
[355605230,1741362640449,-153.0,0.00037351,2]
[355605231,1741362640465,-13349.894971,0.00037597,3]
[355605232,1741362640477,-33821.194012,0.00037606,3]
[355605233,1741362640488,-13349.894971,0.00037606,3]
[355605234,1741362640499,-170.38,0.00037615,2]
[355605235,1741362640510,-151.0,0.00037616,14]
[355605236,1741362640521,-151.0,0.00037616,14]
[355605237,1741362640534,-33821.194012,0.00037616,3]
[355605238,1741362640546,-53399.579884,0.00037616,3]
[355605239,1741362640558,-505.57330532,0.00037626,7]
[355605240,1741362640569,-151.0,0.00037626,14]
[355605241,1741362640580,-151.0,0.00037626,14]
[355605242,1741362640592,-222000.0,0.00037626,2]
[355605244,1741362640604,-1753.58778224,0.00038,30]
[355605246,1741362640615,-153.3,0.00038,31]
[355605248,1741362640627,-153.3,0.00038,31]
[355605250,1741362640638,-153.3,0.00038,31]
[355605252,1741362640648,-153.3,0.00038,31]
[355605254,1741362640664,-153.3,0.00038,31]
[355605256,1741362640675,-153.3,0.00038,31]
[355605258,1741362640685,-153.3,0.00038,31]
[355605260,1741362640696,-153.3,0.00038,31]
[355605262,1741362640712,-153.3,0.00038,31]
[355605263,1741362640724,-153.3,0.00038,31]
[355605265,1741362640735,-153.3,0.00038,31]
[355605266,1741362640748,-153.3,0.00038,31]
[355605267,1741362640759,-1037.0,0.00038355,2]
[355605268,1741362640770,-503.40008105,0.00038356,30]
[355605269,1741362640781,-500.0,0.00038356,30]
[355605270,1741362640792,-505.10642622,0.00038356,30]
[355605271,1741362640803,-500.0,0.00038356,30]
[355605272,1741362640814,-500.0,0.00038356,30]
[355605273,1741362640825,-632.75992062,0.00038356,30]
[355605274,1741362640838,-551.1997033,0.00038356,30]
[355605275,1741362640849,-500.0,0.00038356,30]
[355605276,1741362640860,-541.32375178,0.00038356,30]
[355605277,1741362640871,-500.31800237,0.00038356,30]
[355605278,1741362640882,-522.07850213,0.00038356,30]
[355605279,1741362640894,-509.485787,0.00038356,30]
[355605280,1741362640906,-236.1061866,0.00038356,30]
[355605281,1741362640918,-500.0,0.00038356,30]
[355605282,1741362640930,-500.0,0.00038356,30]
[355605283,1741362640941,-545.9604628,0.00038356,30]
[355605284,1741362640955,-500.0,0.00038356,30]
[355605285,1741362640966,-502.05291383,0.00038356,30]
[355605286,1741362640977,-504.61824981,0.00038356,30]
[355605287,1741362640987,-534.30592278,0.00038356,30]
[355605288,1741362641007,-514.73030579,0.00038356,30]
[355605289,1741362641018,-530.63295033,0.00038356,30]
[355605290,1741362641029,-500.0,0.00038356,30]
[355605291,1741362641040,-509.62258374,0.00038356,30]
[355605292,1741362641051,-548.87550245,0.00038356,30]
[355605294,1741362641063,-500.0,0.00038356,30]
[355605297,1741362641074,-500.0,0.00038356,30]
[355605299,1741362641086,-500.0,0.00038356,30]
[355605301,1741362641097,-508.82385234,0.00038356,30]
[355605303,1741362641111,-504.19785796,0.00038356,30]
[355605304,1741362641123,-500.0,0.00038356,30]
[355605305,1741362641135,-705.39107161,0.00038356,30]
[355605306,1741362641147,-535.8906611,0.00038356,30]
[355605307,1741362641159,-500.0,0.00038356,30]
[355605308,1741362641169,-500.0,0.00038356,30]
[355605309,1741362641180,-574.37484492,0.00038356,30]
[355605310,1741362641190,-500.0,0.00038356,30]
[355605311,1741362641207,-500.0,0.00038356,30]
[355605312,1741362641219,-500.0,0.00038356,30]
[355605313,1741362641232,-514.75927082,0.00038356,30]
[355605314,1741362641243,-500.0,0.00038356,30]
[355605315,1741362641255,-501.05873514,0.00038356,30]
[355605316,1741362641268,-510.02820056,0.00038356,30]
[355605317,1741362641282,-510.46343019,0.00038356,30]
[355605318,1741362641294,-519.17544201,0.00038356,30]
[355605319,1741362641305,-482.59418799,0.00038356,30]
[355605320,1741362641315,-516.15946271,0.00038356,30]
[355605321,1741362641326,-551.05592737,0.00038356,30]
[355605322,1741362641337,-525.3861899,0.00038356,30]
[355605323,1741362641347,-408.29443208,0.00038356,30]
[355605324,1741362641357,-507.48003531,0.00038356,30]
[355605325,1741362641368,-500.0,0.00038356,30]
[355605326,1741362641379,-500.0,0.00038356,30]
[355605327,1741362641390,-500.0,0.00038356,30]
[355605328,1741362641401,-511.54230286,0.00038356,30]
[355605329,1741362641411,-532.05453304,0.00038356,30]
[355605330,1741362641422,-548.69334175,0.00038356,30]
[355605331,1741362641433,-500.0,0.00038356,30]
[355605332,1741362641445,-480.80359402,0.00038356,30]
[355605333,1741362641463,-500.0,0.00038356,30]
[355605334,1741362641474,-532.78612295,0.00038356,30]
[355605335,1741362641485,-500.0,0.00038356,30]
[355605336,1741362641496,-500.0,0.00038356,21]
[355605337,1741362641506,-542.64595384,0.00038356,30]
[355605338,1741362641518,-500.0,0.00038356,30]
[355605339,1741362641530,-500.0,0.00038356,30]
[355605340,1741362641542,-500.0,0.00038356,30]
[355605341,1741362641553,-500.0,0.00038356,30]
[355605342,1741362641564,-551.79353492,0.00038356,30]
[355605343,1741362641576,-544.41,0.00038356,30]
[355605344,1741362641587,-500.0,0.00038356,30]
[355605345,1741362641601,-500.0,0.00038356,30]
[355605346,1741362641613,-950.96,0.00038356,30]
[355605347,1741362641624,-500.0,0.00038356,30]
[355605348,1741362641636,-500.0,0.00038356,30]
[355605349,1741362641647,-511.28831637,0.00038356,30]
[355605350,1741362641659,-533.19396657,0.00038356,30]
[355605351,1741362641671,-500.0,0.00038356,30]
[355605352,1741362641684,-528.95595139,0.00038356,30]
[355605353,1741362641695,-555.88148375,0.00038356,30]
[355605354,1741362641712,-500.0,0.00038356,30]
[355605355,1741362641723,-510.41877597,0.00038356,30]
[355605356,1741362641734,-500.0,0.00038356,30]
[355605357,1741362641745,-548.02207951,0.00038356,30]
[355605358,1741362641758,-500.0,0.00038356,30]
[355605359,1741362641770,-500.0,0.00038356,30]
[355605360,1741362641781,-500.0,0.00038356,30]
[355605361,1741362641791,-500.0,0.00038356,30]
[355605362,1741362641802,-500.0,0.00038356,30]
[355605363,1741362641813,-500.0,0.00038356,30]
[355605364,1741362641823,-500.0,0.00038356,30]
[355605365,1741362641836,-549.7592079,0.00038356,30]
[355605366,1741362641847,-500.0,0.00038356,30]
[355605367,1741362641857,-500.0,0.00038356,30]
[355605368,1741362641868,-546.66598724,0.00038356,30]
[355605369,1741362641879,-548.71189508,0.00038356,30]
[355605370,1741362641890,-500.0,0.00038356,30]
[355605371,1741362641901,-511.22712723,0.00038356,30]
[355605372,1741362641912,-280.11118783,0.00038356,2]
[355605373,1741362641923,-591.93745765,0.00038356,30]
[355605374,1741362641934,-500.0,0.00038356,30]
[355605375,1741362641944,-556.79157423,0.00038356,30]
[355605376,1741362641960,-500.0,0.00038356,30]
[355605377,1741362641972,-500.0,0.00038356,30]
[355605378,1741362641983,-500.0,0.00038356,30]
[355605379,1741362641994,-500.0,0.00038356,30]
[355605380,1741362642005,-500.0,0.00038356,30]
[355605381,1741362642016,-500.0,0.00038356,30]
[355605382,1741362642027,-500.0,0.00038356,30]
[355605383,1741362642038,-500.0,0.00038356,30]
[355605384,1741362642049,-500.0,0.00038356,30]
[355605385,1741362642060,-500.0,0.00038356,30]
[355605386,1741362642071,-500.0,0.00038356,30]
[355605387,1741362642260,-500.0,0.00038356,30]
[355605388,1741362642271,-500.0,0.00038356,30]
[355605389,1741362642281,-500.0,0.00038356,30]
[355605390,1741362642291,-513.99580943,0.00038356,30]
[355605391,1741362642301,-500.0,0.00038356,30]
[355605392,1741362642311,-501.2429187,0.00038356,30]
[355605393,1741362642320,-500.0,0.00038356,30]
[355605394,1741362642330,-500.0,0.00038356,30]
[355605395,1741362642341,-206.73358741,0.00038356,7]
[355605396,1741362642351,-516.27305766,0.00038356,30]
[355605397,1741362642361,-515.24854108,0.00038356,30]
[355605398,1741362642371,-360.657413,0.00038356,14]
[355605399,1741362642382,-514.31939589,0.00038356,30]
[355605400,1741362642392,-507.70692141,0.00038356,30]
[355605401,1741362642402,-500.0,0.00038356,30]
[355605402,1741362642412,-516.38476208,0.00038356,30]
[355605403,1741362642422,-500.0,0.00038356,30]
[355605404,1741362642431,-500.0,0.00038356,30]
[355605405,1741362642442,-500.0,0.00038356,30]
[355605406,1741362642456,-500.0,0.00038356,30]
[355605407,1741362642465,-563.12157562,0.00038356,30]
[355605408,1741362642475,-500.0,0.00038356,30]
[355605409,1741362642485,-500.0,0.00038356,30]
[355605410,1741362642495,-1138.16454153,0.00038356,90]
[355605411,1741362642504,-503.04864132,0.00038356,30]
[355605412,1741362642514,-500.0,0.00038356,30]
[355605413,1741362642523,-500.0,0.00038356,30]
[355605414,1741362642533,-500.0,0.00038356,30]
[355605415,1741362642542,-503.71780061,0.00038356,30]
[355605416,1741362642552,-500.0,0.00038356,30]
[355605417,1741362642562,-500.0,0.00038356,30]
[355605418,1741362642571,-500.0,0.00038356,30]
[355605419,1741362642580,-500.0,0.00038356,30]
[355605420,1741362642590,-500.0,0.00038356,30]
[355605421,1741362642600,-500.0,0.00038356,30]
[355605422,1741362642610,-500.0,0.00038356,30]
[355605423,1741362642619,-526.56476711,0.00038356,30]
[355605424,1741362642628,-484.0,0.00038356,30]
[355605425,1741362642638,-983.1,0.00038356,30]
[355605426,1741362642648,-504.44035024,0.00038356,30]
[355605427,1741362642659,-7986.78,0.00038356,7]
[355605428,1741362642668,-500.0,0.00038356,30]
[355605429,1741362642678,-500.0,0.00038356,30]
[355605430,1741362642690,-500.0,0.00038356,30]
[355605431,1741362642699,-500.0,0.00038356,30]
[355605432,1741362642712,-500.0,0.00038356,30]
[355605433,1741362642721,-501.42512931,0.00038356,30]
[355605434,1741362642730,-501.23162715,0.00038356,30]
[355605435,1741362642740,-507.97225854,0.00038356,30]
[355605436,1741362642749,-500.0,0.00038356,30]
[355605437,1741362642761,-503.73477185,0.00038356,30]
[355605438,1741362642771,-508.5191442,0.00038356,30]
[355605439,1741362642780,-500.0,0.00038356,30]
[355605440,1741362642789,-506.8139955,0.00038356,30]
[355605441,1741362642799,-500.0,0.00038356,30]
[355605442,1741362642808,-518.2088515,0.00038356,30]
[355605443,1741362642818,-500.0,0.00038356,30]
[355605444,1741362642828,-828.13,0.00038356,30]
[355605445,1741362642838,-500.0,0.00038356,30]
[355605446,1741362642847,-511.39252421,0.00038356,30]
[355605447,1741362642857,-500.0,0.00038356,30]
[355605448,1741362642866,-500.0,0.00038356,30]
[355605449,1741362642875,-504.30506586,0.00038356,30]
[355605450,1741362642885,-495.0,0.00038356,30]
[355605451,1741362642895,-500.0,0.00038356,30]
[355605452,1741362642908,-500.0,0.00038356,30]
[355605453,1741362642917,-500.0,0.00038356,30]
[355605454,1741362642927,-277.73720764,0.00038356,30]
[355605455,1741362642937,-500.0,0.00038356,30]
[355605456,1741362642946,-500.0,0.00038356,30]
[355605457,1741362642957,-500.0,0.00038356,30]
[355605458,1741362642967,-510.10074557,0.00038356,30]
[355605459,1741362642977,-500.0,0.00038356,30]
[355605460,1741362642986,-503.41172811,0.00038356,30]
[355605461,1741362642997,-591.03,0.00038356,30]
[355605463,1741362643006,-500.0,0.00038356,30]
[355605464,1741362643015,-500.0,0.00038356,2]
[355605465,1741362643025,-523.01313328,0.00038356,30]
[355605466,1741362643035,-535.901006,0.00038356,30]
[355605467,1741362643044,-500.0,0.00038356,30]
[355605468,1741362643054,-467.91836182,0.00038356,30]
[355605469,1741362643063,-432.09045851,0.00038356,30]
[355605470,1741362643073,-500.0,0.00038356,30]
[355605471,1741362643082,-500.0,0.00038356,30]
[355605472,1741362643092,-500.0,0.00038356,30]
[355605473,1741362643102,-500.0,0.00038356,30]
[355605474,1741362643112,-509.49759065,0.00038356,30]
[355605475,1741362643122,-335.61023722,0.00038356,30]
[355605476,1741362643132,-500.0,0.00038356,30]
[355605477,1741362643142,-500.0,0.00038356,30]
[355605478,1741362643152,-500.0,0.00038356,30]
[355605479,1741362643163,-524.94291728,0.00038356,30]
[355605481,1741362643173,-517.12553812,0.00038356,30]
[355605482,1741362643183,-500.0,0.00038356,30]
[355605484,1741362643193,-601.35862283,0.00038356,30]
[355605486,1741362643208,-500.0,0.00038356,30]
[355605488,1741362643218,-500.0,0.00038373,5]
[355605489,1741362643227,-150.0,0.00038373,3]
[355605490,1741362643237,-500.0,0.0003863,30]
[355605491,1741362643247,-500.0,0.0003863,30]
[355605492,1741362643256,-500.0,0.0003863,30]
[355605493,1741362643268,-500.0,0.0003863,30]
[355605494,1741362643277,-500.0,0.0003863,30]
[355605495,1741362643287,-586.37954872,0.0003863,30]
[355605496,1741362643296,-500.0,0.0003863,30]
[355605497,1741362643306,-500.0,0.0003863,30]
[355605498,1741362643316,-500.0,0.0003863,30]
[355605499,1741362643325,-378.70870129,0.0003863,30]
[355605500,1741362643335,-500.0,0.0003863,30]
[355605501,1741362643345,-500.0,0.0003863,30]
[355605502,1741362643354,-500.0,0.0003863,30]
[355605503,1741362643364,-500.0,0.0003863,30]
[355605504,1741362643373,-500.0,0.0003863,30]
[355605505,1741362643383,-950.96,0.0003863,30]
[355605506,1741362643393,-500.0,0.0003863,30]
[355605507,1741362643403,-500.0,0.0003863,30]
[355605508,1741362643413,-500.0,0.0003863,30]
[355605509,1741362643423,-500.0,0.0003863,30]
[355605510,1741362643433,-500.0,0.0003863,30]
[355605511,1741362643443,-500.0,0.0003863,30]
[355605512,1741362643455,-500.0,0.0003863,30]
[355605513,1741362643465,-500.0,0.0003863,30]
[355605514,1741362643474,-500.0,0.0003863,30]
[355605515,1741362643484,-578.59,0.0003863,30]
[355605516,1741362643494,-249.89301742,0.0003863,30]
[355605517,1741362643504,-500.0,0.0003863,30]
[355605518,1741362643514,-500.0,0.0003863,30]
[355605519,1741362643524,-500.0,0.0003863,30]
[355605520,1741362643534,-257.61,0.0003863,30]
[355605521,1741362643543,-500.0,0.0003863,30]
[355605522,1741362643552,-500.0,0.0003863,30]
[355605523,1741362643562,-500.0,0.0003863,30]
[355605524,1741362643571,-500.0,0.0003863,30]
[355605525,1741362643580,-500.0,0.0003863,30]
[355605526,1741362643590,-500.0,0.0003863,30]
[355605527,1741362643599,-501.96678819,0.0003863,30]
[355605528,1741362643608,-500.0,0.0003863,30]
[355605529,1741362643618,-500.0,0.0003863,30]
[355605530,1741362643628,-500.0,0.0003863,30]
[355605531,1741362643638,-524.95484175,0.0003863,30]
[355605532,1741362643647,-500.0,0.0003863,30]
[355605533,1741362643657,-500.0,0.0003863,30]
[355605534,1741362643667,-500.0,0.0003863,30]
[355605535,1741362643676,-500.0,0.0003863,30]
[355605536,1741362643688,-500.0,0.0003863,30]
[355605537,1741362643698,-500.0,0.0003863,30]
[355605538,1741362643713,-983.1,0.0003863,30]
[355605539,1741362643722,-7986.78,0.0003863,7]
[355605540,1741362643731,-500.0,0.0003863,30]
[355605541,1741362643741,-500.0,0.0003863,30]
[355605542,1741362643751,-500.0,0.0003863,30]
[355605543,1741362643762,-500.0,0.0003863,30]
[355605544,1741362643771,-500.0,0.0003863,30]
[355605545,1741362643781,-500.0,0.0003863,30]
[355605546,1741362643791,-828.13,0.0003863,30]
[355605547,1741362643802,-500.0,0.0003863,30]
[355605548,1741362643811,-500.0,0.0003863,30]
[355605549,1741362643821,-500.0,0.0003863,30]
[355605550,1741362643830,-500.0,0.0003863,30]
[355605551,1741362643839,-500.0,0.0003863,30]
[355605552,1741362643848,-500.0,0.0003863,30]
[355605553,1741362643858,-500.0,0.0003863,30]
[355605554,1741362643867,-500.0,0.0003863,30]
[355605555,1741362643877,-500.0,0.0003863,2]
[355605556,1741362643886,-500.0,0.0003863,30]
[355605557,1741362643896,-500.0,0.0003863,30]
[355605558,1741362643905,-500.0,0.0003863,30]
[355605559,1741362643915,-500.0,0.0003863,30]
[355605560,1741362643924,-255.83539007,0.0003863,30]
[355605561,1741362643934,-150.0,0.00038687,2]
[355605562,1741362643944,-150.0,0.00038688,2]
[355605563,1741362643956,-540.0,0.00038688,2]
[355605564,1741362643965,-1953.0,0.00038688,2]
[355605565,1741362643975,-2275.0,0.00038688,2]
[355605566,1741362643984,-150.0,0.00038688,2]
[355605567,1741362643993,-151.0,0.00038894,14]
[355605568,1741362644003,-153.933015,0.00038894,14]
[355605569,1741362644013,-151.0,0.00038894,14]
[355605570,1741362644022,-643.26,0.000389,30]
[355605571,1741362644033,-357.89,0.000389,30]
[355605572,1741362644043,-500.0,0.00038904,30]
[355605573,1741362644052,-500.0,0.00038904,30]
[355605574,1741362644062,-500.0,0.00038904,30]
[355605575,1741362644075,-500.0,0.00038904,30]
[355605576,1741362644084,-500.0,0.00038904,30]
[355605577,1741362644094,-500.0,0.00038904,30]
[355605578,1741362644104,-151.0,0.00038904,14]
[355605579,1741362644115,-500.0,0.00038904,30]
[355605580,1741362644124,-500.0,0.00038904,30]
[355605581,1741362644134,-500.0,0.00038904,30]
[355605582,1741362644144,-500.0,0.00038904,30]
[355605583,1741362644154,-500.0,0.00038904,30]
[355605584,1741362644164,-950.96,0.00038904,30]
[355605585,1741362644175,-500.0,0.00038904,30]
[355605586,1741362644185,-500.0,0.00038904,30]
[355605587,1741362644194,-599.26,0.00038904,30]
[355605588,1741362644207,-500.0,0.00038904,30]
[355605589,1741362644218,-500.0,0.00038904,30]
[355605590,1741362644227,-500.0,0.00038904,30]
[355605591,1741362644237,-500.0,0.00038904,30]
[355605592,1741362644246,-500.0,0.00038904,30]
[355605593,1741362644255,-500.0,0.00038904,30]
[355605594,1741362644265,-500.0,0.00038904,30]
[355605595,1741362644274,-500.0,0.00038904,30]
[355605596,1741362644284,-500.0,0.00038904,30]
[355605597,1741362644294,-500.0,0.00038904,30]
[355605598,1741362644303,-500.0,0.00038904,30]
[355605599,1741362644313,-500.0,0.00038904,30]
[355605600,1741362644322,-500.0,0.00038904,30]
[355605601,1741362644332,-500.0,0.00038904,30]
[355605602,1741362644341,-500.0,0.00038904,30]
[355605603,1741362644351,-500.0,0.00038904,30]
[355605604,1741362644360,-500.0,0.00038904,30]
[355605605,1741362644370,-500.0,0.00038904,30]
[355605606,1741362644379,-500.0,0.00038904,30]
[355605607,1741362644388,-507.49175535,0.00038904,30]
[355605608,1741362644398,-500.0,0.00038904,30]
[355605609,1741362644408,-500.0,0.00038904,30]
[355605610,1741362644417,-500.0,0.00038904,30]
[355605611,1741362644427,-983.1,0.00038904,30]
[355605612,1741362644437,-7986.78,0.00038904,7]
[355605613,1741362644447,-500.0,0.00038904,30]
[355605614,1741362644460,-500.0,0.00038904,30]
[355605615,1741362644470,-500.0,0.00038904,30]
[355605616,1741362644479,-277.04,0.00038904,30]
[355605617,1741362644489,-500.0,0.00038904,30]
[355605618,1741362644498,-500.0,0.00038904,30]
[355605619,1741362644507,-828.13,0.00038904,30]
[355605620,1741362644516,-500.0,0.00038904,30]
[355605621,1741362644526,-500.0,0.00038904,30]
[355605622,1741362644535,-500.0,0.00038904,30]
[355605623,1741362644544,-500.0,0.00038904,30]
[355605624,1741362644553,-500.0,0.00038904,30]
[355605625,1741362644563,-500.0,0.00038904,30]
[355605626,1741362644573,-161.25,0.00038904,30]
[355605627,1741362644582,-500.0,0.00038904,30]
[355605628,1741362644592,-501.35,0.00038904,30]
[355605629,1741362644602,-500.0,0.00038904,30]
[355605630,1741362644612,-185.48,0.00038904,30]
[355605631,1741362644622,-500.0,0.00038904,30]
[355605632,1741362644632,-250.0,0.00038921,3]
[355605633,1741362644641,-500.0,0.00039178,30]
[355605634,1741362644650,-500.0,0.00039178,30]
[355605635,1741362644661,-500.0,0.00039178,30]
[355605636,1741362644671,-500.0,0.00039178,30]
[355605637,1741362644683,-500.0,0.00039178,30]
[355605638,1741362644693,-500.0,0.00039178,30]
[355605639,1741362644705,-500.0,0.00039178,30]
[355605640,1741362644715,-166.680121,0.00039178,14]
[355605641,1741362644724,-500.0,0.00039178,30]
[355605642,1741362644734,-500.0,0.00039178,30]
[355605643,1741362644744,-500.0,0.00039178,30]
[355605644,1741362644754,-500.0,0.00039178,30]
[355605645,1741362644764,-950.96,0.00039178,30]
[355605646,1741362644774,-500.0,0.00039178,30]
[355605647,1741362644784,-151.665447,0.00039178,14]
[355605648,1741362644794,-500.0,0.00039178,30]
[355605649,1741362644803,-500.0,0.00039178,30]
[355605650,1741362644813,-500.0,0.00039178,30]